fUSD/lending_fUSD_20240825
["ID","MTS","AMOUNT","RATE_DAILY","PERIOD"]
[335914619,1724597433453,-151.0,0.00010793,2]
[335914620,1724597433462,-151.0,0.00010793,2]
[335914621,1724597433472,-151.0,0.00010793,2]
[335914622,1724597433482,-151.0,0.00010793,2]
[335914623,1724597433492,-151.0,0.00010793,2]
[335914624,1724597433501,-151.0,0.00010793,2]
[335914625,1724597433511,-151.0,0.00010793,2]
[335914626,1724597433521,-30175.0293333,0.00010793,2]
[335914627,1724597433531,-25618.8986666,0.00010793,2]
[335914628,1724597433540,-21062.7679999,0.00010793,2]
[335914629,1724597433554,-151.0,0.00010793,2]
[335914630,1724597433564,-151.0,0.00010793,2]
[335914631,1724597433574,-151.0,0.00010793,2]
[335914632,1724597433584,-151.0,0.00010793,2]
[335914633,1724597433594,-151.0,0.00010793,2]
[335914634,1724597433603,-151.0,0.00010793,2]
[335914635,1724597433613,-151.0,0.00010793,2]
[335914636,1724597433624,-151.0,0.00010793,2]
[335914637,1724597433633,-151.0,0.00010793,2]
[335914638,1724597433644,-151.0,0.00010793,2]
[335914639,1724597433653,-265.086052,0.00010793,2]
[335914640,1724597433663,-151.0,0.00010793,2]
[335914641,1724597433672,-151.0,0.00010793,2]
[335914642,1724597433681,-151.0,0.00010793,2]
[335914643,1724597433691,-151.0,0.00010793,2]
[335914644,1724597433701,-151.0,0.00010793,2]
[335914645,1724597433710,-151.0,0.00010793,2]
[335914646,1724597433719,-151.0,0.00010793,2]
[335914647,1724597433728,-151.0,0.00010793,2]
[335914648,1724597433737,-151.0,0.00010793,2]
[335914649,1724597433746,-151.0,0.00010793,2]
[335914650,1724597433757,-151.0,0.00010793,2]
[335914651,1724597433766,-151.0,0.00010793,2]
[335914652,1724597433776,-151.0,0.00010793,2]
[335914653,1724597433785,-151.0,0.00010793,2]
[335914654,1724597433794,-151.0,0.00010793,2]
[335914655,1724597433803,-151.0,0.00010793,2]
[335914656,1724597433812,-151.0,0.00010793,2]
[335914657,1724597433958,-151.31358,0.00010793,2]
[335914658,1724597433969,-151.0,0.00010793,2]
[335914659,1724597433980,-151.0,0.00010793,2]
[335914660,1724597433989,-151.0,0.00010793,2]
[335914661,1724597433998,-151.0,0.00010793,2]
[335914662,1724597434007,-151.0,0.00010793,2]
[335914663,1724597434016,-282.931068,0.00010793,2]
[335914664,1724597434026,-151.0,0.00010793,2]
[335914665,1724597434035,-151.0,0.00010793,2]
[335914666,1724597434045,-151.0,0.00010793,2]
[335914667,1724597434054,-151.0,0.00010793,2]
[335914668,1724597434063,-203.882814,0.00010793,2]
[335914669,1724597434074,-151.0,0.00010793,2]
[335914670,1724597434084,-151.0,0.00010793,2]
[335914671,1724597434093,-155.099251,0.00010793,2]
[335914672,1724597434102,-151.0,0.00010793,2]
[335914673,1724597434111,-151.0,0.00010793,2]
[335914674,1724597434121,-246.562379,0.00010793,2]
[335914675,1724597434130,-151.0,0.00010793,2]
[335914676,1724597434139,-151.0,0.00010793,2]
[335914677,1724597434149,-151.0,0.00010793,2]
[335914678,1724597434158,-151.0,0.00010793,2]
[335914679,1724597434167,-151.0,0.00010793,2]
[335914680,1724597434176,-151.0,0.00010793,2]
[335914681,1724597434185,-151.0,0.00010793,2]
[335914682,1724597434194,-151.0,0.00010793,2]
[335914683,1724597434203,-151.0,0.00010793,2]
[335914684,1724597434212,-224.84011,0.00010793,2]
[335914685,1724597434221,-151.0,0.00010793,2]
[335914686,1724597434230,-151.0,0.00010793,2]
[335914687,1724597434239,-151.298603,0.00010793,2]
[335914688,1724597434248,-151.0,0.00010793,2]
[335914689,1724597434257,-151.0,0.00010793,2]
[335914690,1724597434267,-151.0,0.00010793,2]
[335914691,1724597434276,-151.0,0.00010793,2]
[335914692,1724597434285,-151.0,0.00010793,2]
[335914693,1724597434294,-151.0,0.00010793,2]
[335914694,1724597434304,-151.0,0.00010793,2]
[335914695,1724597434313,-151.0,0.00010793,2]
[335914696,1724597434323,-151.0,0.00010793,2]
[335914697,1724597434333,-151.0,0.00010793,2]
[335914698,1724597434342,-151.0,0.00010793,2]
[335914699,1724597434352,-151.0,0.00010793,2]
[335914700,1724597434361,-151.0,0.00010793,2]
[335914701,1724597434370,-265.940419,0.00010793,2]
[335914702,1724597434379,-20583.2595333,0.00010793,2]
[335914703,1724597434388,-23444.9753999,0.00010793,2]
[335914704,1724597434398,-26306.6912666,0.00010793,2]
[335914705,1724597434407,-191.913464,0.00010793,2]
[335914706,1724597434416,-191.913464,0.00010793,2]
[335914707,1724597434426,-191.913464,0.00010793,2]
[335914708,1724597434435,-191.913464,0.00010793,2]
[335914709,1724597434444,-191.913464,0.00010793,2]
[335914710,1724597434453,-191.913464,0.00010793,2]
[335914711,1724597434463,-191.913464,0.00010793,2]
[335914712,1724597434472,-191.913464,0.00010793,2]
[335914713,1724597434481,-191.913464,0.00010793,2]
[335914714,1724597434489,-191.913464,0.00010793,2]
[335914715,1724597434498,-191.913464,0.00010793,2]
[335914716,1724597434507,-151.0,0.00010793,2]
[335914717,1724597434516,-191.913464,0.00010793,2]
[335914718,1724597434526,-151.0,0.00010793,2]
[335914719,1724597434535,-191.913464,0.00010793,2]
[335914720,1724597434547,-151.0,0.00010793,2]
[335914721,1724597434558,-191.913464,0.00010793,2]
[335914722,1724597434568,-151.0,0.00010793,2]
[335914723,1724597434577,-151.0,0.00010793,2]
[335914724,1724597434588,-255.907428,0.00010793,2]
[335914725,1724597434598,-151.0,0.00010793,2]
[335914726,1724597434607,-151.0,0.00010793,2]
[335914727,1724597434617,-2431.7088048,0.00010793,2]
[335914728,1724597434628,-151.0,0.00010793,2]
[335914729,1724597434637,-151.0,0.00010793,2]
[335914730,1724597434646,-177.971496,0.00010793,2]
[335914731,1724597434656,-151.0,0.00010793,2]
[335914732,1724597434665,-151.0,0.00010793,2]
[335914733,1724597434675,-151.0,0.00010793,2]
[335914734,1724597434684,-151.0,0.00010793,2]
[335914735,1724597434694,-151.0,0.00010793,2]
[335914736,1724597434704,-160.284097,0.00010793,2]
[335914737,1724597434714,-151.0,0.00010793,2]
[335914738,1724597434723,-151.0,0.00010793,2]
[335914739,1724597434733,-151.0,0.00010793,2]
[335914740,1724597434743,-151.0,0.00010793,2]
[335914741,1724597434752,-151.0,0.00010793,2]
[335914742,1724597434762,-151.0,0.00010793,2]
[335914743,1724597434771,-1570.8048471,0.00010793,2]
[335914744,1724597434781,-151.0,0.00010793,2]
[335914745,1724597434791,-151.0,0.00010793,2]
[335914746,1724597434800,-151.0,0.00010793,2]
[335914747,1724597434810,-151.0,0.00010793,2]
[335914748,1724597434819,-151.0,0.00010793,2]
[335914749,1724597434828,-151.0,0.00010793,2]
[335914750,1724597434838,-151.0,0.00010793,2]
[335914751,1724597434847,-151.0,0.00010793,2]
[335914752,1724597434856,-151.0,0.00010793,2]
[335914753,1724597434865,-151.0,0.00010793,2]
[335914754,1724597434875,-151.0,0.00010793,2]
[335914755,1724597434884,-151.0,0.00010793,2]
[335914756,1724597434893,-151.0,0.00010793,2]
[335914757,1724597434903,-151.0,0.00010793,2]
[335914758,1724597434913,-151.0,0.00010793,2]
[335914759,1724597434922,-151.0,0.00010793,2]
[335914760,1724597434931,-151.0,0.00010793,2]
[335914761,1724597434941,-151.0,0.00010793,2]
[335914762,1724597434952,-151.0,0.00010793,2]
[335914763,1724597434961,-151.0,0.00010793,2]
[335914764,1724597434971,-225.49316,0.00010793,2]
[335914765,1724597434981,-410.983462,0.00010793,2]
[335914766,1724597434990,-410.983462,0.00010793,2]
[335914767,1724597435000,-410.983462,0.00010793,2]
[335914768,1724597435010,-151.0,0.00010793,2]
[335914769,1724597435019,-410.983462,0.00010793,2]
[335914770,1724597435028,-151.0,0.00010793,2]
[335914771,1724597435037,-410.983462,0.00010793,2]
[335914772,1724597435047,-151.0,0.00010793,2]
[335914773,1724597435057,-410.983462,0.00010793,2]
[335914774,1724597435066,-151.0,0.00010793,2]
[335914775,1724597435076,-1171.133282,0.00010793,2]
[335914776,1724597435085,-1171.133282,0.00010793,2]
[335914777,1724597435094,-1171.133282,0.00010793,2]
[335914778,1724597435103,-1171.133282,0.00010793,2]
[335914779,1724597435112,-1171.133282,0.00010793,2]
[335914780,1724597435122,-1171.133282,0.00010793,2]
[335914781,1724597435131,-1171.133282,0.00010793,2]
[335914782,1724597435140,-271.936046,0.00010793,2]
[335914783,1724597435150,-271.936046,0.00010793,2]
[335914784,1724597435159,-271.936046,0.00010793,2]
[335914785,1724597435168,-151.0,0.00010793,2]
[335914786,1724597435178,-151.0,0.00010793,2]
[335914787,1724597435188,-151.0,0.00010793,2]
[335914788,1724597435197,-271.936046,0.00010793,2]
[335914789,1724597435208,-271.936046,0.00010793,2]
[335914790,1724597435219,-271.936046,0.00010793,2]
[335914791,1724597435228,-151.0,0.00010793,2]
[335914792,1724597435238,-151.0,0.00010793,2]
[335914793,1724597435247,-244.904432,0.00010793,2]
[335914794,1724597435256,-151.0,0.00010793,2]
[335914795,1724597435265,-151.0,0.00010793,2]
[335914796,1724597435276,-151.0,0.00010793,2]
[335914797,1724597435286,-151.0,0.00010793,2]
[335914798,1724597435296,-151.0,0.00010793,2]
[335914799,1724597435306,-687.575702,0.00010793,2]
[335914800,1724597435316,-169.052234,0.00010793,2]
[335914801,1724597435325,-687.575702,0.00010793,2]
[335914802,1724597435334,-687.575702,0.00010793,2]
[335914803,1724597435344,-687.575702,0.00010793,2]
[335914804,1724597435352,-687.575702,0.00010793,2]
[335914805,1724597435361,-687.575702,0.00010793,2]
[335914806,1724597435371,-687.575702,0.00010793,2]
[335914807,1724597435381,-687.575702,0.00010793,2]
[335914808,1724597435390,-151.366493,0.00010793,2]
[335914809,1724597435399,-151.0,0.00010793,2]
[335914810,1724597435409,-151.0,0.00010793,2]
[335914811,1724597435418,-151.0,0.00010793,2]
[335914812,1724597435427,-151.0,0.00010793,2]
[335914813,1724597435436,-151.0,0.00010793,2]
[335914814,1724597435445,-151.0,0.00010793,2]
[335914815,1724597435455,-151.0,0.00010793,2]
[335914816,1724597435463,-151.0,0.00010793,2]
[335914817,1724597435472,-151.0,0.00010793,2]
[335914818,1724597435481,-151.0,0.00010793,2]
[335914819,1724597435491,-151.0,0.00010793,2]
[335914820,1724597435500,-151.0,0.00010793,2]
[335914821,1724597435509,-151.0,0.00010793,2]
[335914822,1724597435519,-151.0,0.00010793,2]
[335914823,1724597435528,-151.0,0.00010793,2]
[335914824,1724597435539,-151.0,0.00010793,2]
[335914825,1724597435552,-220.882095,0.00010793,2]
[335914826,1724597435562,-151.0,0.00010793,2]
[335914827,1724597435574,-151.0,0.00010793,2]
[335914828,1724597435584,-151.0,0.00010793,2]
[335914829,1724597435605,-249.287982,0.00010793,2]
[335914830,1724597435615,-249.287982,0.00010793,2]
[335914831,1724597435625,-249.287982,0.00010793,2]
[335914832,1724597435634,-249.287982,0.00010793,2]
[335914833,1724597435644,-249.287982,0.00010793,2]
[335914834,1724597435653,-249.287982,0.00010793,2]
[335914835,1724597435663,-249.287982,0.00010793,2]
[335914836,1724597435673,-249.287982,0.00010793,2]
[335914837,1724597435683,-249.287982,0.00010793,2]
[335914838,1724597435694,-249.287982,0.00010793,2]
[335914839,1724597435704,-151.0,0.00010793,2]
[335914840,1724597435715,-151.0,0.00010793,2]
[335914841,1724597435724,-151.0,0.00010793,2]
[335914842,1724597435734,-151.0,0.00010793,2]
[335914843,1724597435744,-151.0,0.00010793,2]
[335914844,1724597435753,-49.68463311,0.00010793,2]
[335914845,1724597435802,-101.31536689,0.00010793,2]
[335914846,1724597435812,-151.0,0.00010793,2]
[335914847,1724597435822,-151.423945,0.00010793,2]
[335914848,1724597435831,-151.0,0.00010793,2]
[335914849,1724597435841,-121.36068811,0.00010793,2]
[335914850,1724597435853,-29.63931189,0.00010793,2]
[335914851,1724597435863,-151.0,0.00010793,2]
[335914852,1724597435873,-151.0,0.00010793,2]
[335914853,1724597435882,-151.0,0.00010793,2]
[335914854,1724597435891,-151.0,0.00010793,2]
[335914855,1724597435901,-151.0,0.00010793,2]
[335914856,1724597435910,-151.0,0.00010793,2]
[335914857,1724597435919,-151.0,0.00010793,2]
[335914858,1724597435929,-94.62281945,0.00010793,2]
[335914859,1724597435941,-56.37718055,0.00010793,2]
[335914860,1724597435950,-151.0,0.00010793,2]
[335914861,1724597435959,-151.0,0.00010793,2]
[335914862,1724597435969,-151.0,0.00010793,2]
[335914863,1724597435980,-165.118084,0.00010793,2]
[335914864,1724597435990,-151.0,0.00010793,2]
[335914865,1724597435999,-151.0,0.00010793,2]
[335914866,1724597436009,-264.128473,0.00010793,2]
[335914867,1724597436019,-2355.84385722,0.00010797,2]
[335914868,1724597436028,-1187.1374212,0.00010799,3]
[335914869,1724597436038,-1411.73768509,0.000108,2]
[335914870,1724597436049,-85627.43529804,0.000108,2]
[335914871,1724597436061,-732.10144154,0.000108,2]
[335914873,1724597437999,-280.005645,0.00010789,2]
[335914874,1724597438009,-4397.82321525,0.000108,2]
[335914875,1724597438120,-110484.97418603,0.000108,2]
[335914876,1724597438132,-393.01182328,0.000108,2]
[335914877,1724597438143,-941.43031319,0.000108,2]
[335914878,1724597438155,-118102.89268295,0.000108,2]
[335914879,1724597438255,-280.005645,0.00010793,2]
[335914880,1724597438265,-1283837.62597274,0.000108,2]
[335914881,1724597438278,-705.06853729,0.000108,2]
[335914882,1724597438290,-105476.65060907,0.000108,2]
[335914884,1724597439968,-280.005645,0.00010793,2]
[335914885,1724597439977,-280.005645,0.00010793,2]
[335914886,1724597439987,-280.005645,0.00010793,2]
[335914887,1724597439996,-12631.88001595,0.000108,2]
[335914888,1724597440007,-1500.0,0.000108,2]
[335914889,1724597440019,-1341.45000002,0.000108,2]
[335914890,1724597440030,-262.894995,0.000108,2]
[335914891,1724597440211,-1546.7702969,0.000108,2]
[335914892,1724597440344,-280.005645,0.00010793,2]
[335914893,1724597440354,-362.834355,0.000108,2]
[335914894,1724597440369,-1800.3862206,0.000108,2]
[335914954,1724597443360,-280.005645,0.00010789,2]
[335914955,1724597443369,-280.005645,0.00010793,2]
[335914956,1724597443378,-280.005645,0.00010793,2]
[335914957,1724597443387,-12172.33503662,0.000108,2]
[335914958,1724597443398,-29921.661647,0.000108,2]
[335914959,1724597443636,-20883.5000272,0.000108,2]
[335914960,1724597443647,-11820.50224,0.000108,2]
[335914961,1724597443658,-16268.07293523,0.000108,2]
[335914997,1724597445915,-280.005645,0.00010793,2]
[335914998,1724597445926,-280.005645,0.00010793,2]
[335914999,1724597445939,-280.005645,0.00010793,2]
[335915001,1724597445951,-1253.62290241,0.000108,2]
[335915010,1724597446054,-16104.830329,0.000108,2]
[335915011,1724597446067,-126282.77962769,0.000108,2]
[335915012,1724597446081,-1246.40784,0.000108,2]
[335915013,1724597446120,-276.75,0.000108,2]
[335915014,1724597446134,-5222.98397483,0.000108,2]
[335915016,1724597446178,-27812.27962863,0.000108,2]
[335915019,1724597468375,255.03,9.989e-05,2]
[335915020,1724597507698,3100.0,0.00027,120]
[335915021,1724597603643,500.0,0.00024932,120]
[335915024,1724597614575,694.44,0.00024657,120]
[335915025,1724597614877,694.44,0.00025342,120]
[335915026,1724597615144,694.44,0.00026027,120]
[335915027,1724597615436,694.44,0.00026712,120]
[335915028,1724597617985,6821.37,9.969e-05,2]
[335915029,1724597865669,213.82,8.219e-05,2]
[335915030,1724597876107,329.82,8.22e-05,2]
[335915031,1724597876130,170.18,8.22e-05,2]
[335915032,1724597876597,500.0,8.22e-05,2]
[335915033,1724597878241,500.0,9.59e-05,2]
[335915034,1724597878649,672.06,9.937e-05,2]
[335915035,1724597923146,500.0,9.937e-05,2]
[335915036,1724597923882,500.0,9.937e-05,2]
[335915037,1724597924123,500.0,9.937e-05,2]
[335915038,1724597924435,500.0,9.937e-05,2]
[335915039,1724597924961,500.0,9.937e-05,2]
[335915040,1724597924995,206.92,9.945e-05,2]
[335915041,1724597925125,500.0,9.937e-05,2]
[335915042,1724597925471,500.0,9.937e-05,2]
[335915043,1724597926053,500.0,9.937e-05,2]
[335915044,1724597926375,500.0,9.937e-05,2]
[335915045,1724597926743,500.0,9.937e-05,2]
[335915046,1724597927116,598.0,9.937e-05,2]
[335915047,1724597942486,500.0,8.22e-05,2]
[335915051,1724598239709,995.37,0.00024657,120]
[335915052,1724598239962,995.37,0.00025342,120]
[335915053,1724598240308,995.37,0.00026027,120]
[335915054,1724598240574,995.37,0.00026712,120]
[335915055,1724598241225,500.0,9.912e-05,2]
[335915056,1724598353481,35000.0,0.00025,60]
[335915057,1724598364636,213.47,8.219e-05,2]
[335915058,1724598376000,1742.54,9.916e-05,2]
[335915060,1724598404146,462.35,9.924e-05,2]
[335915061,1724598404192,156.39812584,9.962e-05,2]
[335915062,1724598414054,206.92,9.914e-05,2]
[335915063,1724598420944,913.88377008,0.00025,60]
[335915064,1724598429236,1498.35799685,9.962e-05,2]
[335915065,1724598467198,255.02,9.893e-05,2]
[335915067,1724598480231,5000.0,0.0001,2]
[335915068,1724598491690,2505.40041835,9.999e-05,2]
[335915069,1724598500595,904.26299626,0.00027,120]
[335915070,1724598531041,155.09815491,9.893e-05,2]
[335915073,1724598540624,621.86959348,9.893e-05,2]
[335915075,1724598578610,723.4040354,9.893e-05,2]
[335915085,1724598625071,7244.6679,9.909e-05,2]
[335915086,1724598629871,155.58830313,9.893e-05,2]
[335915088,1724598632058,-1339.32568212,0.00010026,2]
[335915089,1724598632069,-1196.345,0.00010026,2]
[335915090,1724598632080,-315.0,0.00010026,2]
[335915091,1724598632104,-555.80378093,0.00010026,2]
[335915092,1724598632114,-155.0,0.00010097,2]
[335915093,1724598632123,-213.47,0.00010472,2]
[335915094,1724598632132,-1500.0,0.00010661,2]
[335915095,1724598632142,-300.0,0.00010688,2]
[335915096,1724598632151,-137.75738748,0.00010689,2]
[335915097,1724598632163,-474.46635641,0.00010689,2]
[335915098,1724598632174,-569.99999994,0.00010689,2]
[335915099,1724598632186,-351.899999,0.00010689,2]
[335915100,1724598632198,-1716.11182628,0.00010689,2]
[335915101,1724598632210,-5819.77133089,0.00010689,2]
[335915102,1724598632219,-6189.9705,0.00010689,2]
[335915103,1724598632228,-533.20873134,0.0001069,2]
[335915104,1724598632239,-649.47748866,0.0001069,2]
[335915105,1724598632248,-150.0,0.00010699,2]
[335915106,1724598632259,-109.8323899,0.00010699,2]
[335915107,1724598632271,-636.79253411,0.00010699,2]
[335915108,1724598632282,-71.55507388,0.00010699,2]
[335915109,1724598632291,-375.97679739,0.000107,2]
[335915110,1724598632302,-490.16320084,0.000107,2]
[335915111,1724598632332,-464.8466094,0.000107,2]
[335915112,1724598632343,-606.03878096,0.000107,2]
[335915113,1724598632364,-2707.0383635,0.000107,2]
[335915114,1724598632374,-699.1022,0.000107,2]
[335915115,1724598632383,-256.6102956,0.000107,2]
[335915116,1724598632392,-164.46104346,0.000107,2]
[335915117,1724598632402,-2500.0,0.000107,2]
[335915118,1724598632411,-155.31997098,0.000107,2]
[335915119,1724598632420,-366.26126628,0.00010713,2]
[335915120,1724598632429,-2032.36933137,0.00010758,2]
[335915121,1724598632441,-465.63066863,0.00010758,2]
[335915122,1724598632450,-6635.06467031,0.00010758,2]
[335915123,1724598632526,-1381.95190557,0.00010758,2]
[335915125,1724598632536,-712.02367317,0.00010758,2]
[335915128,1724598632547,-375.01975095,0.00010758,2]
[335915129,1724598632557,-126.21563049,0.00010758,2]
[335915130,1724598632567,-1206.91436951,0.00010758,2]
[335915131,1724598632576,-151.0,0.00010789,2]
[335915132,1724598632585,-167.243321,0.00010789,2]
[335915133,1724598632594,-151.0,0.00010789,2]
[335915134,1724598632603,-1227.55537935,0.0001079,2]
[335915135,1724598632614,-289.86462065,0.0001079,2]
[335915136,1724598632624,-150.82,0.0001079,2]
[335915137,1724598632633,-151.0,0.00010793,2]
[335915138,1724598632642,-151.0,0.00010793,2]
[335915139,1724598632651,-151.0,0.00010793,2]
[335915140,1724598632660,-151.0,0.00010793,2]
[335915141,1724598632669,-151.0,0.00010793,2]
[335915142,1724598632679,-151.0,0.00010793,2]
[335915143,1724598632689,-151.0,0.00010793,2]
[335915144,1724598632698,-151.0,0.00010793,2]
[335915145,1724598632707,-151.0,0.00010793,2]
[335915146,1724598632717,-151.0,0.00010793,2]
[335915147,1724598632726,-151.147651,0.00010793,2]
[335915148,1724598632735,-1319.72618002,0.00010793,2]
[335915149,1724598632747,-883.99414718,0.00010793,2]
[335915150,1724598632763,-1773.5296728,0.00010793,2]
[335915151,1724598632772,-3194.2821929,0.00010793,2]
[335915152,1724598632781,-1384.90117409,0.00010793,2]
[335915153,1724598632792,-4036.74748476,0.00010793,2]
[335915154,1724598632803,-603.91888408,0.00010793,2]
[335915156,1724598638230,-155.0,0.00010026,2]
[335915157,1724598638240,-354.16789362,0.000107,2]
[335915158,1724598638251,-674.77735011,0.000107,2]
[335915159,1724598638262,-345.05513472,0.00010793,2]
[335915160,1724598638273,-683.31048834,0.00010793,2]
[335915161,1724598638284,-421.399227,0.00010793,2]
[335915162,1724598638295,-7214.73959698,0.00010793,2]
[335915163,1724598638306,-1145.08013776,0.00010793,2]
[335915164,1724598638317,-3669.90322017,0.00010793,2]
[335915165,1724598638326,-3841.2819952,0.00010793,2]
[335915166,1724598638336,-1727.02643085,0.00010797,2]
[335915167,1724598638345,-5560.14231561,0.000108,2]
[335915168,1724598638357,-11216.25702667,0.000108,2]
[335915169,1724598638368,-20570.8866,0.000108,2]
[335915170,1724598638379,-315.94706267,0.000108,2]
[335915171,1724598638452,-845.302431,0.000108,2]
[335915172,1724598638463,-6470.20833297,0.000108,2]
[335915173,1724598638474,-112680.23703609,0.000108,2]
[335915174,1724598638486,-1075.99486238,0.000108,2]
[335915175,1724598638497,-5340.98495427,0.000108,2]
[335915176,1724598638516,-338.26352533,0.000108,2]
[335915177,1724598638533,-6016.27157419,0.000108,2]
[335915178,1724598638544,-2506.77543946,0.000108,2]
[335915179,1724598638556,-2604.69232305,0.000108,2]
[335915180,1724598638567,-7969.17193469,0.000108,2]
[335915181,1724598638579,-3458.69314524,0.000108,2]
[335915182,1724598638590,-28740.04165578,0.000108,2]
[335915184,1724598638601,-60200.48900671,0.000108,2]
[335915186,1724598638615,-820878.22052513,0.000108,2]
[335915187,1724598638627,-454682.809504,0.000108,2]
[335915189,1724598638638,-6525.06999584,0.000108,2]
[335915191,1724598638649,-785.23100942,0.000108,2]
[335915192,1724598638665,-462.45588772,0.000108,2]
[335915193,1724598638676,-264.54053448,0.000108,2]
[335915194,1724598638687,-7785.65114072,0.000108,2]
[335915197,1724598640196,-267.84,0.000108,2]
[335915198,1724598640208,-6678.40024662,0.000108,2]
[335915199,1724598640219,-578.06080476,0.000108,2]
[335915200,1724598640267,-338.07522607,0.000108,2]
[335915201,1724598640280,-660.549,0.000108,2]
[335915202,1724598640334,-844.59940527,0.000108,2]
[335915203,1724598640348,-1663.5002,0.000108,2]
[335915204,1724598640360,-1316.48839018,0.000108,2]
[335915205,1724598640374,-2303.5,0.000108,2]
[335915206,1724598640387,-476.45777715,0.000108,2]
[335915207,1724598640398,-59377.57373107,0.000108,2]
[335915208,1724598640580,-474965.03029392,0.000108,2]
[335915209,1724598640592,-304.33735203,0.000108,2]
[335915210,1724598640603,-889.49999995,0.000108,2]
[335915211,1724598640616,-714.85,0.000108,2]
[335915212,1724598640627,-400.075,0.000108,2]
[335915242,1724598641085,-1986.34492326,0.000108,2]
[335915399,1724598643688,-13190.16168377,0.000108,2]
[335915400,1724598643897,-3033.64713585,0.000108,2]
[335915401,1724598643909,-7127.69927395,0.000108,2]
[335915421,1724598646263,-1337.3760115,0.000108,2]
[335915422,1724598646315,-660.27499999,0.000108,2]
[335915423,1724598646328,-2177.3905911,0.000108,2]
[335915838,1724598724828,700.0,8.22e-05,2]
[335915851,1724598725165,800.0,8.22e-05,2]
[335915880,1724598726415,700.0,9.59e-05,2]
[335915881,1724598726785,800.0,9.59e-05,2]
[335915882,1724598801958,829.47,0.00024657,120]
[335915883,1724598802345,829.47,0.00025342,120]
[335915884,1724598802622,829.47,0.00026027,120]
[335915885,1724598802910,829.47,0.00026712,120]
[335915886,1724598804659,500.0,0.00024932,120]
[335915888,1724598906852,234.46,9.936e-05,2]
[335915889,1724598907037,1050.0,0.0001,2]
[335915890,1724598938569,500.0,0.0001,2]
[335915892,1724598949100,211.1,9.929e-05,2]
[335915893,1724598980894,630.12,9.925e-05,2]
[335915894,1724599100219,193.84378897,9.999e-05,2]
[335915895,1724599115243,211.79,8.219e-05,2]
[335915896,1724599129737,420.11804382,9.999e-05,2]
[335915897,1724599183645,218.93,9.993e-05,2]
[335915900,1724599205332,1000.0,9.904e-05,2]
[335915901,1724599208164,-3703.75773093,0.0001644,30]
[335915902,1724599208187,-666.99390921,0.00018,30]
[335915903,1724599208214,-2612.31,0.000189,31]
[335915904,1724599208239,-2612.31,0.000189,31]
[335915905,1724599208264,-2612.31,0.000189,31]
[335915906,1724599208289,-2612.31,0.000189,31]
[335915907,1724599208313,-2612.31,0.000189,31]
[335915908,1724599208337,-2612.31,0.000189,31]
[335915909,1724599208362,-2612.31,0.000189,31]
[335915910,1724599208387,-2612.31,0.000189,31]
[335915911,1724599208411,-2612.31,0.000189,31]
[335915912,1724599208436,-2612.31,0.000189,31]
[335915913,1724599208463,-2612.31,0.000189,31]
[335915914,1724599208488,-2612.31,0.000189,31]
[335915915,1724599208513,-2612.31,0.000189,31]
[335915916,1724599208537,-2612.31,0.000189,31]
[335915917,1724599208562,-2612.31,0.000189,31]
[335915918,1724599208586,-2612.31,0.000189,31]